bitfinex/quotes_ETHUSD_20241215
["timestamp","ask_amount","ask_price","bid_price","bid_amount"]
[1734262451210,2.58618,3866.7,3866.4,2.23795608]
[1734262451463,2.58618,3866.7,3866.5,0.89518243]
[1734262451616,2.58618,3866.7,3866.3,1.08008256]
[1734262451816,2.58618,3866.7,3866.4,2.23761025]
[1734262452039,2.58618,3866.7,3866.3,1.4252132]
[1734262452040,1.08181313,3867.4,3866.6,0.7511]
[1734262452242,2.5859,3867.2,3866.7,2.23731737]
[1734262452469,2.58594,3867.1,3866.8,0.89478049]
[1734262452657,2.586,3867.0,3866.6,1.83118256]
[1734262452868,2.586,3867.0,3866.7,0.89482974]
[1734262453333,2.586,3867.0,3866.6,1.1307437]
[1734262453528,0.7622,3867.1,3866.6,0.7511]
[1734262453753,2.58609,3866.9,3866.6,0.7511]
[1734262454124,2.58591,3867.2,3866.6,0.7511]
[1734262454345,2.58593,3867.1,3866.6,0.7511]
[1734262454542,2.58593,3867.1,3866.7,2.2367397]
[1734262454875,2.58578,3867.3,3866.9,0.7511]
[1734262455040,3.34776,3867.7,3867.0,0.8947493]
[1734262455243,2.58586,3867.2,3867.0,0.8947493]
[1734262455462,2.58586,3867.2,3866.9,0.7511]
[1734262455689,2.58586,3867.2,3867.1,0.05689333]
[1734262455851,2.58586,3867.2,3866.9,0.7511]
[1734262456036,0.7622,3867.7,3867.1,0.05689333]
[1734262456240,2.58578,3867.3,3867.0,0.05693147]
[1734262456463,2.58578,3867.3,3866.9,0.7511]
[1734262456739,2.58578,3867.3,3867.0,0.95138971]
[1734262457086,2.58578,3867.3,3867.0,0.05693147]
[1734262457387,2.58536,3868.0,3867.2,0.7511]
[1734262457551,2.58536,3868.0,3867.3,2.70494238]
[1734262457750,2.58536,3868.0,3867.5,0.7511]
[1734262457951,2.58536,3868.0,3867.6,2.29242614]
[1734262458160,2.58536,3868.0,3867.6,0.05652175]
[1734262459255,3.34723,3868.5,3867.7,2.23415036]
[1734262459439,2.58519,3868.2,3867.7,0.05648362]
[1734262459844,2.58519,3868.2,3867.5,1.83118256]
[1734262460063,2.58519,3868.2,3867.6,2.23372525]
[1734262460275,0.7622,3868.5,3867.7,0.8934901]
[1734262460461,2.58503,3868.5,3867.8,0.7511]
[1734262460676,2.58503,3868.5,3867.8,0.80710846]
[1734262460877,2.58503,3868.5,3867.8,0.99582756]
[1734262462170,2.58507,3868.4,3867.8,0.99582756]
[1734262462654,2.58507,3868.4,3867.8,0.80710846]
[1734262463963,2.58489,3868.7,3867.8,0.80710846]
[1734262464187,2.58498,3868.5,3867.8,0.80710846]
[1734262464490,2.58511,3868.4,3867.8,0.80710846]
[1734262465956,2.58518,3868.2,3867.8,0.80710846]
[1734262466155,1.08181313,3868.8,3867.8,0.80710846]
[1734262466356,2.58516,3868.3,3867.8,0.7511]
[1734262467360,2.58518,3868.2,3867.8,0.7511]
[1734262468363,2.58518,3868.2,3867.9,0.0555132]
[1734262469421,2.58505,3868.4,3867.9,0.0555132]
[1734262470128,2.58505,3868.4,3867.8,0.7511]
[1734262470536,2.58505,3868.4,3867.9,0.05550941]
[1734262470825,2.58505,3868.4,3867.8,0.7511]
[1734262471205,2.58505,3868.4,3867.9,0.05550221]
[1734262471401,2.58505,3868.4,3867.8,0.7511]
[1734262471605,2.58505,3868.4,3867.9,0.05545198]
[1734262471801,2.58505,3868.4,3867.8,0.7511]
[1734262472018,2.58505,3868.4,3867.9,0.05545198]
[1734262472393,2.58505,3868.4,3867.8,0.7511]
[1734262472613,2.58505,3868.4,3867.9,0.05545198]
[1734262472932,2.58505,3868.4,3867.8,0.7511]
[1734262473321,2.58505,3868.4,3867.9,0.05545198]
[1734262473746,2.58505,3868.4,3867.8,0.7511]
[1734262474122,2.58492,3868.6,3867.9,0.05545198]
[1734262474317,2.58492,3868.6,3867.8,0.7511]
[1734262474522,2.58499,3868.5,3868.0,0.05541385]
[1734262474746,2.58499,3868.5,3867.9,0.05544822]
[1734262474954,2.58499,3868.5,3868.1,0.05537573]
[1734262475111,2.58499,3868.5,3868.0,0.0554101]
[1734262475310,2.58506,3868.4,3867.8,0.7511]
[1734262475518,0.99616259,3868.7,3868.1,0.05537197]
[1734262475725,0.99616259,3868.7,3867.8,0.7511]
[1734262475726,2.58512,3868.3,3867.8,0.7511]
[1734262477321,2.58512,3868.3,3867.9,0.05545198]
[1734262477824,2.58512,3868.3,3867.8,0.7511]
[1734262478034,2.58512,3868.3,3868.0,0.05541385]
[1734262478214,2.58512,3868.3,3867.9,0.05545198]
[1734262478414,2.58512,3868.3,3867.8,0.7511]
[1734262478646,2.58512,3868.3,3867.9,0.05545198]
[1734262478843,2.58512,3868.3,3867.8,0.7511]
[1734262479049,2.58512,3868.3,3868.0,0.05541385]
[1734262479248,2.58512,3868.3,3867.8,0.7511]
[1734262479547,2.58512,3868.3,3868.1,0.05537197]
[1734262479754,2.58512,3868.3,3867.8,0.7511]
[1734262480161,2.58512,3868.3,3867.9,0.05545198]
[1734262480456,2.58499,3868.5,3867.8,0.7511]
[1734262480657,2.58499,3868.5,3868.0,0.05541385]
[1734262480857,2.58499,3868.5,3867.8,0.7511]
[1734262481071,2.58499,3868.5,3868.1,0.05537573]
[1734262481354,2.58499,3868.5,3867.8,0.7511]
[1734262481753,2.58499,3868.5,3867.9,0.05532298]
[1734262490061,0.7622,3868.7,3867.9,0.05532298]
[1734262490238,2.58498,3868.5,3867.9,0.05532298]
[1734262492559,2.58498,3868.5,3868.0,0.7884]
[1734262492933,2.58498,3868.5,3868.1,0.05516536]
[1734262497531,2.58513,3868.3,3868.1,0.05516536]
[1734262497768,2.58513,3868.3,3868.0,0.7884]
[1734262499453,2.58513,3868.3,3868.1,0.0551754]
[1734262499796,2.58513,3868.3,3868.0,0.7884]
[1734262500143,2.58513,3868.3,3868.1,0.0551754]
[1734262500466,3.36658,3868.2,3868.1,0.0551754]
[1734262500672,2.58594,3867.1,3866.9,1.08008256]
[1734262500878,0.7814,3867.2,3866.6,1.08008256]
[1734262501082,2.586,3867.0,3866.7,0.89485125]
[1734262501416,2.586,3867.0,3866.4,0.7884]
[1734262501417,2.58607,3866.9,3866.4,0.7884]
[1734262501731,2.58607,3866.9,3866.5,0.89477428]
[1734262502256,2.58607,3866.9,3866.4,0.7884]
[1734262502458,2.58607,3866.9,3866.5,0.89469459]
[1734262502712,0.7814,3867.2,3866.5,0.89469459]
[1734262503011,2.58591,3867.1,3866.5,0.89469459]
[1734262504281,2.58591,3867.1,3866.4,0.7884]
[1734262505126,2.58591,3867.1,3866.5,0.89413882]
[1734262505333,2.58572,3867.4,3866.5,0.27626214]
[1734262505618,2.58572,3867.4,3866.6,1.682185]
[1734262505767,2.58572,3867.4,3866.6,0.7884]
[1734262506164,2.58594,3867.1,3866.6,0.7884]
[1734262507716,2.58579,3867.3,3866.6,0.7884]
[1734262508233,0.7814,3867.6,3866.6,0.7884]
[1734262508445,2.58587,3867.2,3866.7,0.0434657]
[1734262508936,2.58587,3867.2,3866.3,0.91194826]
[1734262509140,2.58587,3867.2,3866.8,0.0419787]
[1734262509341,2.58587,3867.2,3866.1,4.20669384]
[1734262509636,2.58571,3867.5,3866.2,2.23253265]
[1734262509838,3.66961871,3868.0,3866.5,2.58631]
[1734262509839,2.5855,3867.8,3866.5,2.58631]
[1734262510053,2.58553,3867.7,3866.6,2.23231215]
[1734262510258,2.58553,3867.7,3866.7,0.89301306]
[1734262510555,2.58553,3867.7,3866.8,0.04194858]
[1734262510764,0.7605,3867.9,3866.8,0.04194858]
[1734262511050,2.58531,3868.0,3866.7,2.58612]
[1734262511355,2.58531,3868.0,3866.8,2.65414046]
[1734262511655,2.58539,3867.9,3866.9,2.23158818]
[1734262511844,2.58539,3867.9,3867.0,0.89256903]
[1734262511995,2.58539,3867.9,3867.1,0.8229]
[1734262512323,2.58539,3867.9,3867.2,0.04179603]
[1734262513698,2.58539,3867.9,3867.3,0.8229]
[1734262514147,2.58539,3867.9,3867.4,0.04171977]
[1734262515332,2.58546,3867.8,3867.4,0.04171977]
[1734262515873,2.58546,3867.8,3867.3,0.8229]
[1734262516230,2.58546,3867.8,3867.4,0.04189037]
[1734262516471,2.58546,3867.8,3867.3,0.8229]
[1734262516679,2.58546,3867.8,3867.4,0.04189037]
[1734262516816,2.58546,3867.8,3867.3,0.8229]
[1734262517016,2.58546,3867.8,3867.4,0.04189037]
[1734262517339,2.58546,3867.8,3867.3,0.8229]
[1734262517674,2.58546,3867.8,3867.4,0.04189037]
[1734262517881,2.58546,3867.8,3867.3,0.8229]
[1734262518021,2.58546,3867.8,3867.4,0.04189037]
[1734262519884,2.58511,3868.4,3867.5,0.8229]
[1734262520026,2.5852,3868.2,3867.6,0.04181412]
[1734262521114,0.7605,3868.5,3867.6,0.04181412]
[1734262521475,2.58531,3868.1,3867.6,0.04181412]
[1734262523349,2.58512,3868.3,3867.6,0.04181412]
[1734262524144,2.58526,3868.1,3867.6,0.04181412]
[1734262524334,2.58533,3868.0,3867.6,0.04181412]
[1734262531765,0.7837,3868.5,3867.6,0.04181412]
[1734262532013,3.36921,3867.7,3867.6,0.04181412]
[1734262532184,2.58569,3867.5,3866.9,0.8076]
[1734262532539,2.58569,3867.5,3867.0,0.08890551]
[1734262534181,2.58573,3867.4,3867.0,0.08890551]
[1734262535839,0.7837,3867.7,3867.0,0.08890551]
[1734262536045,2.58589,3867.2,3867.0,0.08890551]
[1734262537172,0.7837,3867.7,3867.0,0.08890551]
[1734262537350,0.97049687,3867.7,3867.0,0.08890551]
[1734262538256,2.58578,3867.3,3867.0,0.08890551]
[1734262538945,0.97049687,3867.7,3867.0,0.08890551]
[1734262539271,2.58571,3867.4,3867.0,0.08890551]
[1734262541369,0.7837,3867.7,3867.0,0.08890551]
[1734262541370,2.58579,3867.3,3867.0,0.08890551]
[1734262551373,2.58250695,3867.6,3867.0,0.08890551]
[1734262551685,2.58250695,3867.6,3867.1,0.89451698]
[1734262551878,2.58565,3867.5,3867.2,0.08648359]
[1734262552288,2.58565,3867.5,3866.9,0.8076]
[1734262552483,2.58565,3867.5,3867.0,2.32304327]
[1734262552705,2.58565,3867.5,3867.0,0.08656237]
[1734262553307,2.58565,3867.5,3867.1,0.89461935]
[1734262553602,2.58565,3867.5,3867.2,0.08648359]
[1734262554112,2.58565,3867.5,3866.9,0.8076]
[1734262554278,2.58565,3867.5,3867.0,2.32354955]
[1734262554478,2.58565,3867.5,3867.1,0.89479487]
[1734262554702,2.58565,3867.5,3867.2,0.08648359]
[1734262555090,2.58565,3867.5,3866.9,1.8869925]
[1734262555314,2.58565,3867.5,3867.0,2.32359008]
[1734262555490,2.58565,3867.5,3867.1,2.23702771]
[1734262555817,2.58565,3867.5,3867.2,0.08648359]
[1734262556226,0.7837,3867.7,3866.9,0.8076]
[1734262556516,2.58579,3867.3,3867.0,0.89496589]
[1734262556673,2.58579,3867.3,3867.1,0.08650292]
[1734262557374,2.58579,3867.3,3866.9,0.8076]
[1734262557574,0.7837,3867.7,3867.2,0.08646353]
[1734262557775,2.58566,3867.5,3866.9,0.8076]
[1734262558137,2.58575,3867.4,3867.0,0.89489681]
[1734262558410,2.58575,3867.4,3867.0,0.98147421]
[1734262558596,2.58578,3867.3,3867.0,0.0865774]
[1734262560037,2.58563,3867.6,3867.0,0.0865774]
[1734262560242,2.58563,3867.6,3867.1,0.8948374]
[1734262560734,2.58563,3867.6,3867.2,0.08649861]
[1734262561249,2.58563,3867.6,3866.9,1.8869925]
[1734262561430,2.58563,3867.6,3867.3,0.08645421]
[1734262561628,2.58563,3867.6,3867.1,0.7937]
[1734262561908,2.58563,3867.6,3867.2,0.89477123]
[1734262562110,2.58563,3867.6,3867.3,0.08643416]
[1734262562471,2.58563,3867.6,3867.1,0.7937]
[1734262562680,2.58563,3867.6,3867.2,1.20359388]
[1734262563010,2.58563,3867.6,3867.2,0.30883873]
[1734262563410,2.58539,3867.9,3867.3,1.68844077]
[1734262563646,2.58539,3867.9,3867.3,0.7937]
[1734262563925,2.58539,3867.9,3867.4,0.08622723]
[1734262565738,2.58524,3868.1,3867.5,1.68833807]
[1734262565915,2.58524,3868.1,3867.5,0.7937]
[1734262566110,2.58524,3868.1,3867.6,0.08594801]
[1734262568547,2.58532,3868.0,3867.6,0.08594801]
[1734262569664,1.08426871,3868.3,3867.6,0.08594801]
[1734262569829,2.58551,3867.7,3867.6,0.08594801]
[1734262570611,3.35741,3867.7,3867.6,0.08594801]
[1734262570952,2.58571,3867.5,3866.9,1.8340925]
[1734262571154,2.58571,3867.5,3867.0,2.2367468]
[1734262571449,2.58571,3867.5,3867.1,2.2367468]
[1734262571652,2.58571,3867.5,3867.2,0.89470252]
[1734262571821,2.58571,3867.5,3867.2,0.08596158]
[1734262572251,2.58571,3867.5,3867.0,1.0793925]
[1734262572451,2.58571,3867.5,3867.3,0.08578121]
[1734262572653,2.58571,3867.5,3867.0,1.0793925]
[1734262572855,2.58571,3867.5,3867.4,0.08574182]
[1734262573025,2.58571,3867.5,3867.0,1.0793925]
[1734262573240,2.58571,3867.5,3867.4,0.08577229]
[1734262573422,2.58571,3867.5,3867.1,2.23683835]
[1734262573423,2.58571,3867.5,3867.0,1.0793925]
[1734262573736,2.58571,3867.5,3867.1,2.23704238]
[1734262573924,2.58571,3867.5,3867.2,0.89481695]
[1734262574116,0.7719,3867.7,3867.3,0.08588248]
[1734262574317,2.58571,3867.4,3867.0,1.0793925]
[1734262574523,2.58571,3867.4,3867.1,2.32315988]
[1734262574755,2.58571,3867.4,3867.2,2.23721462]
[1734262575056,2.58571,3867.4,3867.1,0.08594526]
[1734262575243,2.58571,3867.4,3867.3,0.08583448]
[1734262575444,2.58571,3867.4,3867.2,0.08585786]
[1734262575754,2.58571,3867.4,3867.0,1.0793925]
[1734262575755,2.58571,3867.4,3867.3,0.08581848]
[1734262576258,2.58578,3867.3,3867.0,1.0793925]
[1734262576446,2.58578,3867.3,3867.1,2.23755428]
[1734262576644,2.58578,3867.3,3867.2,0.89502171]
[1734262577166,0.7719,3867.7,3866.9,1.8340925]
[1734262577167,2.58585,3867.2,3866.9,1.8340925]
[1734262577464,2.58585,3867.2,3867.0,2.23792201]
[1734262577673,2.58585,3867.2,3867.1,0.8951688]
[1734262578536,2.58585,3867.2,3867.1,2.23790194]
[1734262578749,4.44172871,3867.7,3867.1,0.8951688]
[1734262578974,2.58564,3867.5,3866.9,0.7547]
[1734262579174,2.58582,3867.3,3867.0,2.23797736]
[1734262579381,2.58585,3867.2,3866.8,1.0793925]
[1734262579729,3.35775,3867.2,3866.9,2.23799795]
[1734262579972,3.35775,3867.2,3867.0,2.23799795]
[1734262580275,3.35775,3867.2,3866.8,1.0793925]
[1734262580573,3.35775,3867.2,3866.9,2.23797485]
[1734262580775,3.35775,3867.2,3867.0,2.23797485]
[1734262581076,3.35775,3867.2,3866.8,1.0793925]
[1734262581255,3.35775,3867.2,3866.9,2.23793601]
[1734262581453,3.35775,3867.2,3867.0,2.23793601]
[1734262581648,3.35775,3867.2,3866.8,1.0793925]
[1734262581963,3.35775,3867.2,3866.9,2.23788603]
[1734262582168,3.35775,3867.2,3867.0,0.89515441]
[1734262582384,3.35775,3867.2,3866.8,1.0793925]
[1734262582587,3.35775,3867.2,3866.9,2.23797925]
[1734262582765,3.35775,3867.2,3867.0,0.8951917]
[1734262582965,3.35775,3867.2,3866.7,1.0793925]
[1734262583165,3.35775,3867.2,3866.8,2.23803023]
[1734262583369,3.35775,3867.2,3866.9,2.23803023]
[1734262583686,1.69108189,3867.6,3867.0,0.89521209]
[1734262583880,1.69108189,3867.6,3867.1,0.89515803]
[1734262583881,2.58577,3867.4,3867.1,0.89515803]
[1734262584206,2.58577,3867.4,3866.9,1.0793925]
[1734262584385,2.58577,3867.4,3867.0,2.23774628]
[1734262584571,2.58577,3867.4,3867.1,0.89509851]
[1734262584769,2.58577,3867.4,3866.8,1.0793925]
[1734262584971,2.58577,3867.4,3866.9,2.23782586]
[1734262585168,2.58577,3867.4,3867.0,2.23782586]
[1734262585374,2.58577,3867.4,3867.1,0.89513034]
[1734262585572,2.58577,3867.4,3866.9,1.0793925]
[1734262585804,2.58577,3867.4,3867.0,2.2377703]
[1734262586016,2.58577,3867.4,3867.1,0.89510866]
[1734262586188,2.58577,3867.4,3866.9,1.0793925]
[1734262586397,2.58577,3867.4,3867.0,2.23786293]
[1734262586688,2.58577,3867.4,3867.1,0.89514517]
[1734262587005,2.58577,3867.4,3866.8,1.0793925]
[1734262587213,2.58577,3867.4,3866.9,2.23803547]
[1734262587411,0.7719,3867.5,3867.0,2.23803547]
[1734262587412,2.58579,3867.3,3867.0,2.23803547]
[1734262587701,2.58579,3867.3,3866.8,1.0793925]
[1734262588001,2.58579,3867.3,3866.9,2.23776965]
[1734262588306,2.58579,3867.3,3867.0,2.23776965]
[1734262588601,2.58579,3867.3,3866.8,1.0793925]
[1734262588807,2.58587,3867.2,3866.9,2.23779215]
[1734262588984,2.58587,3867.2,3867.0,0.89511686]
[1734262589184,2.58587,3867.2,3866.7,1.0793925]
[1734262589499,2.58587,3867.2,3866.8,2.2378544]
[1734262589703,2.58587,3867.2,3866.9,2.2378544]
[1734262589943,2.58587,3867.2,3867.0,0.89514176]
[1734262590243,2.58587,3867.2,3866.7,1.0793925]
[1734262590564,2.58587,3867.2,3866.8,2.32476836]
[1734262590848,2.58587,3867.2,3866.9,2.2377729]
[1734262591134,2.58587,3867.2,3867.0,0.98202582]
[1734262591330,2.58587,3867.2,3867.0,0.08691666]
[1734262591631,2.58587,3867.2,3866.7,1.0793925]
[1734262591831,2.58587,3867.2,3867.1,0.08687726]
[1734262592002,2.58587,3867.2,3866.7,1.0793925]
[1734262592199,2.58587,3867.2,3867.1,0.08687726]
[1734262592424,2.58587,3867.2,3866.7,1.0793925]
[1734262592625,2.58587,3867.2,3867.1,0.08687726]
[1734262592824,2.58587,3867.2,3866.7,1.0793925]
[1734262593037,2.58587,3867.2,3867.1,0.08687726]
[1734262593332,2.98232752,3867.2,3867.1,0.08687726]
[1734262593551,2.98232752,3867.2,3866.6,1.0793925]
[1734262593737,2.58587,3867.2,3867.1,0.08690734]
[1734262594031,2.58587,3867.2,3866.6,1.0793925]
[1734262594220,2.58587,3867.2,3867.1,0.08690734]
[1734262594423,2.58587,3867.2,3866.6,1.0793925]
[1734262594640,2.58587,3867.2,3867.1,0.08691235]
[1734262594854,3.09075439,3867.2,3866.6,1.0793925]
[1734262595039,3.09075439,3867.2,3867.1,0.08691235]
[1734262595040,2.58587,3867.2,3867.1,0.08691235]
[1734262595240,2.58587,3867.2,3866.6,1.0793925]
[1734262595445,2.58587,3867.2,3867.1,0.08691235]
[1734262595647,2.58587,3867.2,3866.6,1.0793925]
[1734262595820,2.58578,3867.3,3867.1,0.08691235]
[1734262596021,3.09065539,3867.3,3866.6,1.0793925]
[1734262596216,0.7719,3867.5,3867.2,0.08687296]
[1734262596532,2.58561,3867.6,3867.3,0.08683356]
[1734262596723,1.87646871,3867.8,3866.9,0.7955]
[1734262596724,1.87646871,3867.8,3866.9,1.8748925]
[1734262597054,4.46191871,3867.8,3867.0,2.32400368]
[1734262597259,4.46191871,3867.8,3867.1,2.23703188]
[1734262597455,2.58552,3867.7,3867.0,0.0869718]
[1734262597756,2.58552,3867.7,3867.1,2.323884]
[1734262597958,2.58552,3867.7,3867.2,0.89478064]
[1734262598320,2.58552,3867.7,3867.3,0.08685361]
[1734262598521,2.58552,3867.7,3866.9,1.8748925]
[1734262598721,5.32918866,3868.2,3867.1,1.0793925]
[1734262598722,3.66956871,3868.1,3867.1,1.0793925]
[1734262598921,2.5853,3868.1,3867.3,0.7955]
[1734262599258,2.5853,3868.1,3867.4,2.32365305]
[1734262599552,2.5853,3868.1,3867.5,2.23647933]
[1734262599753,2.5853,3868.1,3867.6,0.98105165]
[1734262599953,2.5853,3868.1,3867.6,0.08662517]
[1734262600130,4.46156871,3868.4,3867.4,1.0793925]
[1734262600334,4.46156871,3868.4,3867.6,0.7955]
[1734262600536,4.46156871,3868.4,3867.7,0.08658579]
[1734262601842,2.58512,3868.3,3867.7,0.08658579]
[1734262602054,2.5852,3868.2,3867.7,0.08658579]
[1734262625332,0.7922,3868.4,3867.7,0.08658579]
[1734262625532,2.58504,3868.5,3867.8,0.7669]
[1734262625850,2.58504,3868.5,3867.9,0.08279982]
[1734262627521,2.58472,3868.9,3868.0,0.7669]
[1734262627730,2.58478,3868.8,3868.1,0.84954591]
[1734262629058,0.8069938,3868.5,3868.1,0.84954591]
[1734262629251,1.42047247,3868.4,3868.1,0.84954591]
[1734262629455,1.42047247,3868.3,3868.1,0.84954591]
[1734262629654,1.42047247,3868.2,3868.1,0.84954591]
[1734262629966,1.42047247,3868.2,3868.1,1.74328255]
[1734262630174,1.42032584,3868.2,3868.1,2.05990205]
[1734262630355,1.42032584,3868.2,3868.1,1.16616541]
[1734262630668,1.42032584,3868.2,3868.1,2.05976102]
[1734262631220,1.42032584,3868.2,3868.1,1.74314152]
[1734262631518,1.42032584,3868.2,3868.1,0.84954591]
[1734262632830,1.03296933,3868.2,3868.1,0.84954591]
[1734262633029,0.87140495,3868.2,3868.1,0.84954591]
[1734262633289,0.87111683,3868.2,3868.1,0.84954591]
[1734262634425,0.48402821,3868.2,3868.1,0.84954591]
[1734262634663,0.87108625,3868.2,3868.1,0.84954591]
[1734262635080,1.03265022,3868.2,3868.1,0.84954591]
[1734262636579,1.03244352,3868.2,3868.1,0.84954591]
[1734262637014,0.24190959,3868.2,3868.1,0.84954591]
[1734262637281,1.03244444,3868.2,3868.1,0.84954591]
[1734262637460,1.43450515,3868.2,3868.1,0.08264591]
[1734262637645,1.4356271,3868.2,3868.1,0.08264591]
[1734262637844,1.4356271,3868.2,3867.7,0.8296]
[1734262638078,1.03244444,3868.1,3867.8,2.2338831]
[1734262638279,1.03244444,3868.0,3867.7,0.8296]
[1734262638472,0.40318266,3868.2,3867.8,0.89355899]
[1734262638473,0.79053485,3867.9,3867.8,0.89355899]
[1734262638692,0.79053485,3867.9,3867.8,2.23401805]
[1734262639099,1.03245386,3867.9,3867.8,2.23401805]
[1734262639405,0.87088395,3867.9,3867.8,3.31341055]
[1734262639766,0.24191901,3867.9,3867.8,3.31341055]
[1734262639971,0.87091285,3867.9,3867.8,3.31341055]
[1734262641494,0.87091285,3867.9,3867.8,2.23401805]
[1734262642215,0.7568,3868.8,3867.9,0.8199]
[1734262642216,0.40320118,3868.5,3867.9,0.8199]
[1734262642398,0.54864854,3868.4,3868.0,3.31533849]
[1734262642585,0.54864854,3868.3,3868.1,2.23401805]
[1734262642784,0.40320118,3868.5,3868.2,2.23401805]
[1734262642996,0.16156423,3868.4,3868.0,1.08132044]
[1734262643182,0.40321117,3868.6,3868.1,2.58742353]
[1734262643385,0.40321117,3868.7,3868.2,2.2352891]
[1734262643593,0.40321117,3868.7,3868.3,2.2352891]
[1734262643795,0.40321117,3868.7,3868.1,1.08132044]
[1734262644015,0.40321117,3868.7,3868.2,2.2353881]
[1734262644169,0.40321117,3868.7,3868.3,2.2353881]
[1734262644371,0.40321117,3868.7,3868.4,0.89425151]
[1734262644577,0.40321117,3868.7,3868.1,1.08132044]
[1734262644777,0.40321117,3868.7,3868.2,2.2356371]
[1734262644993,0.40321117,3868.7,3868.3,2.2356371]
[1734262645319,0.40321117,3868.7,3868.4,0.89425484]
[1734262645530,0.40321117,3868.7,3868.1,1.08132044]
[1734262645821,0.40321117,3868.7,3868.2,2.2355854]
[1734262646049,0.40321117,3868.7,3868.3,2.2355854]
[1734262646253,3.34158,3868.8,3868.4,0.89423416]
[1734262646550,0.40322062,3868.7,3868.1,1.08132044]
[1734262646736,0.40322062,3868.7,3868.2,2.2354911]
[1734262646883,0.40322062,3868.7,3868.3,2.2354911]
[1734262647084,0.40322062,3868.7,3868.4,0.89419644]
[1734262647390,3.34158,3868.8,3868.1,1.08132044]
[1734262647591,3.34158,3868.8,3868.2,2.23544598]
[1734262647815,3.34158,3868.8,3868.3,2.23544598]
[1734262648023,3.34158,3868.8,3868.4,0.89417839]
[1734262648239,3.34158,3868.8,3868.1,1.08132044]
[1734262648416,3.34158,3868.8,3868.2,2.23541762]
[1734262648604,3.34158,3868.8,3868.3,2.23541762]
[1734262648803,3.34158,3868.8,3868.4,0.89416705]
[1734262649006,3.34158,3868.8,3868.1,1.08132044]
[1734262649337,3.34158,3868.8,3868.2,2.23552423]
[1734262649539,3.34158,3868.8,3868.3,2.23552423]
[1734262649682,3.34158,3868.8,3868.4,0.89420969]
[1734262649889,3.34158,3868.8,3868.1,1.08132044]
[1734262650123,3.34158,3868.8,3868.2,2.2354757]
[1734262650342,3.34158,3868.8,3868.3,2.2354757]
[1734262650482,3.34158,3868.8,3868.4,0.89419028]
[1734262650819,3.34158,3868.8,3868.4,0.08229736]
[1734262651223,3.34158,3868.8,3868.1,1.08132044]
[1734262651390,3.34158,3868.8,3868.5,0.08225799]
[1734262651594,3.34158,3868.8,3868.1,1.08132044]
[1734262651921,3.34158,3868.8,3868.2,2.31848138]
[1734262652223,3.34158,3868.8,3868.3,2.23610528]
[1734262652413,3.34158,3868.8,3868.4,0.89442757]
[1734262652597,3.34158,3868.8,3868.3,0.08233673]
[1734262652790,3.34158,3868.8,3868.4,0.89442403]
[1734262653102,3.34158,3868.8,3868.5,0.07933218]
[1734262653433,0.7888,3869.1,3868.6,0.07929282]
[1734262653601,0.7888,3869.5,3868.7,3.01456456]
[1734262653801,0.7888,3869.5,3868.8,2.73248643]
[1734262654101,1.08426871,3869.8,3869.0,0.7788]
[1734262654304,0.48409,3869.7,3869.1,0.8939507]
[1734262654642,0.48409,3869.6,3869.2,0.89385515]
[1734262654856,0.48409,3869.5,3869.2,0.07902165]
[1734262655159,0.242045,3869.4,3869.2,0.07902165]
[1734262655435,0.242045,3869.3,3869.0,0.7788]
[1734262655606,0.242045,3869.2,3869.1,0.89356873]
[1734262655810,2.58424,3869.6,3869.1,0.89356873]
[1734262656144,0.24182947,3869.5,3869.1,0.89356873]
[1734262656342,0.24182947,3869.4,3869.1,0.89356873]
[1734262656552,0.24182947,3869.3,3869.1,0.89356873]
[1734262656685,0.24182947,3869.2,3869.0,1.12698017]
[1734262656891,2.58424,3869.6,3869.1,1.11419542]
[1734262657187,2.82605908,3869.5,3869.0,0.7788]
[1734262657388,0.24173908,3869.4,3869.0,0.7788]
[1734262657694,0.24173908,3869.3,3869.1,0.89317079]
[1734262657884,0.24173908,3869.2,3869.0,0.7788]
[1734262658090,2.58432,3869.5,3869.1,0.89319163]
[1734262658291,0.24160656,3869.4,3869.2,0.16719916]
[1734262658510,0.7888,3869.9,3869.0,0.7788]
[1734262658511,0.24160656,3869.3,3869.0,0.7788]
[1734262658693,2.58417,3869.8,3869.1,0.8929789]
[1734262658898,2.82578096,3869.7,3869.1,0.8929789]
[1734262659108,0.24160096,3869.6,3869.1,0.8929789]
[1734262659338,0.24160096,3869.5,3869.0,0.7788]
[1734262659545,2.58418,3869.7,3869.1,1.07885142]
[1734262659546,0.24160096,3869.4,3869.1,1.07885142]
[1734262659742,0.24160096,3869.3,3869.1,0.18601204]
[1734262659960,2.58405,3869.9,3869.1,0.18601204]
[1734262660105,0.2415301,3869.8,3869.1,0.18601204]
[1734262660313,0.2415301,3869.7,3869.1,0.18601204]
[1734262660492,0.2415301,3869.6,3869.2,0.20709656]
[1734262660702,0.2415301,3869.5,3869.3,0.7788]
[1734262661003,2.58386,3870.2,3869.3,0.7788]
[1734262661221,0.2414495,3870.1,3869.3,0.7788]
[1734262661399,0.2414495,3870.0,3869.3,0.7788]
[1734262661629,2.58371,3870.4,3869.5,0.7788]
[1734262661812,0.24133284,3870.3,3869.6,0.89196233]
[1734262662013,0.24133284,3870.2,3869.5,0.7788]
[1734262662215,2.58379,3870.3,3869.5,0.7788]
[1734262662415,0.2413293,3870.1,3869.5,0.7788]
[1734262662591,2.5836,3870.6,3869.7,0.7788]
[1734262662792,2.82488483,3870.5,3869.7,0.7788]
[1734262662993,0.24121483,3870.4,3869.7,0.7788]
[1734262663227,0.24121483,3870.3,3869.7,0.7788]
[1734262663404,2.58367,3870.5,3869.7,0.7788]
[1734262663741,0.24111057,3870.4,3869.7,0.7788]
[1734262663917,0.24111057,3870.3,3869.7,0.7788]
[1734262664117,2.58367,3870.5,3869.7,0.7788]
[1734262664434,0.24102389,3870.4,3869.7,0.7788]
[1734262665623,0.24102389,3870.4,3869.6,0.22171671]
[1734262665624,0.24102389,3870.4,3869.8,0.85571787]
[1734262665904,2.58367,3870.5,3869.8,0.85571787]
[1734262666133,0.24096041,3870.4,3869.8,0.85571787]
[1734262666339,2.58367,3870.5,3869.8,0.85571787]
[1734262667937,2.58351,3870.7,3869.8,0.85571787]
[1734262668137,0.24084522,3870.6,3869.8,0.85571787]
[1734262668618,2.58351,3870.7,3869.8,0.85571787]